bitfinex/quotes_BTCUSD_20250618
["timestamp","ask_amount","ask_price","bid_price","bid_amount"]
[1750209367729,0.00547384,105210.0,105200.0,0.62648202]
[1750209368446,0.00547384,105210.0,105200.0,0.42644202]
[1750209368697,0.00347384,105210.0,105200.0,0.62648202]
[1750209368916,0.00047384,105210.0,105200.0,0.62648202]
[1750209369342,0.00347384,105210.0,105200.0,0.62648202]
[1750209369550,0.00047384,105210.0,105200.0,0.62648202]
[1750209369973,0.00047384,105210.0,105200.0,0.63648202]
[1750209373216,0.00047384,105210.0,105200.0,0.43644202]
[1750209373444,0.00047384,105210.0,105200.0,0.63640202]
[1750209374766,0.00047384,105210.0,105200.0,0.63632202]
[1750209375408,0.00047384,105210.0,105200.0,0.43644202]
[1750209375643,0.00047384,105210.0,105200.0,0.63632202]
[1750209375856,0.00047384,105210.0,105200.0,0.43644202]
[1750209376084,0.00047384,105210.0,105200.0,0.63632202]
[1750209387338,0.00047384,105210.0,105200.0,0.63608202]
[1750209387574,0.00047384,105210.0,105200.0,0.41743161]
[1750209387789,0.00047384,105210.0,105200.0,0.62328727]
[1750209388503,0.00047384,105210.0,105200.0,0.64518727]
[1750209393650,0.00047384,105210.0,105200.0,0.64514727]
[1750209397722,0.00047384,105210.0,105200.0,0.64533462]
[1750209397946,0.00047384,105210.0,105200.0,0.6332257]
[1750209398161,0.00047384,105210.0,105200.0,0.6979823]
[1750209398404,0.00047384,105210.0,105200.0,0.68649096]
[1750209398636,0.00047384,105210.0,105200.0,1.07649096]
[1750209400984,0.00047384,105210.0,105200.0,1.09739096]
[1750209401417,0.00047384,105210.0,105200.0,1.14739096]
[1750209406446,1.05150735,105260.0,105240.0,0.21854679]
[1750209406447,0.8866523,105260.0,105240.0,0.21854679]
[1750209406687,0.02214211,105250.0,105240.0,0.46632808]
[1750209406911,0.00014211,105250.0,105240.0,0.56256984]
[1750209407155,0.00014211,105250.0,105240.0,0.60376984]
[1750209407387,0.01121956,105250.0,105240.0,0.60376984]
[1750209407616,0.01121956,105250.0,105240.0,0.58246984]
[1750209407837,0.00014211,105250.0,105240.0,0.56256984]
[1750209411092,0.01122859,105250.0,105240.0,0.56256984]
[1750209411314,0.00014211,105250.0,105240.0,0.56256984]
[1750209411530,0.00014211,105250.0,105240.0,0.55306857]
[1750209412036,0.00014211,105250.0,105240.0,0.35358857]
[1750209412261,0.04064211,105250.0,105240.0,0.55302884]
[1750209412474,0.04064211,105250.0,105240.0,0.35358893]
[1750209412693,0.04064211,105250.0,105240.0,0.56253047]
[1750209413114,0.04064211,105250.0,105240.0,0.55302893]
[1750209413335,0.04064211,105250.0,105240.0,0.56253047]
[1750209413544,0.04064211,105250.0,105240.0,0.55302893]
[1750209413768,0.04064211,105250.0,105240.0,0.53402549]
[1750209413983,0.04064211,105250.0,105240.0,0.3343616]
[1750209414205,0.04064211,105250.0,105240.0,0.35336569]
[1750209414424,0.04064211,105250.0,105240.0,0.34386369]
[1750209415131,0.05216866,105250.0,105240.0,0.34386369]
[1750209415359,0.05216866,105250.0,105240.0,0.3343616]
[1750209415579,0.05216866,105250.0,105240.0,0.1350416]
[1750209415803,0.05216866,105250.0,105240.0,0.31978075]
[1750209416033,0.05216866,105250.0,105240.0,0.16214075]
[1750209417426,0.05216866,105250.0,105240.0,0.35218255]
[1750209417682,0.05216866,105250.0,105240.0,0.32004445]
[1750209418105,0.05216866,105250.0,105240.0,0.32954626]
[1750209418549,0.05216866,105250.0,105240.0,0.33904798]
[1750209418776,0.05216866,105250.0,105240.0,0.32004445]
[1750209418994,0.05216866,105250.0,105240.0,0.37118617]
[1750209419206,0.01166866,105250.0,105240.0,0.37118617]
[1750209419414,0.01166866,105250.0,105240.0,0.37118626]
[1750209419627,0.01166866,105250.0,105240.0,0.38068798]
[1750209419844,0.01166866,105250.0,105240.0,0.39018961]
[1750209420051,0.01166866,105250.0,105240.0,0.39969106]
[1750209420296,0.01166866,105250.0,105240.0,0.43413191]
[1750209421737,0.01166866,105250.0,105240.0,0.45613191]
[1750209421954,0.00014211,105250.0,105240.0,0.41449191]
[1750209422172,0.00014211,105250.0,105240.0,0.56233028]
[1750209422846,0.00014211,105250.0,105240.0,0.60513028]
[1750209427338,0.00014211,105250.0,105240.0,0.58313028]
[1750209428695,0.00014211,105250.0,105240.0,0.56233028]
[1750209429598,0.00014211,105250.0,105240.0,0.60223028]
[1750209436140,0.00014211,105250.0,105240.0,0.38572693]
[1750209436385,0.04244211,105250.0,105240.0,0.13788176]
[1750209436627,0.04244211,105250.0,105240.0,0.31440566]
[1750209436899,0.04244211,105250.0,105240.0,0.30490385]
[1750209437143,0.04244211,105250.0,105240.0,0.31440585]
[1750209437620,0.04244211,105250.0,105240.0,0.51394955]
[1750209437858,0.04244211,105250.0,105240.0,0.59575276]
[1750209438287,0.04244211,105250.0,105240.0,0.60525448]
[1750209438742,0.04244211,105250.0,105240.0,0.61979487]
[1750209438967,0.00014211,105250.0,105240.0,0.65969432]
[1750209439421,0.00014211,105250.0,105240.0,0.61979432]
[1750209442296,0.04224211,105250.0,105240.0,0.38262771]
[1750209442515,0.86732811,105260.0,105240.0,0.57674858]
[1750209442516,0.72150789,105260.0,105240.0,0.57674858]
[1750209442742,1.06150789,105260.0,105250.0,0.09624176]
[1750209442955,1.06150789,105260.0,105250.0,0.15391662]
[1750209444027,1.07100736,105260.0,105250.0,0.15391662]
[1750209444466,1.07100736,105260.0,105250.0,0.09624176]
[1750209444730,1.07200736,105260.0,105250.0,0.09624176]
[1750209444979,0.34,105250.0,105230.0,0.0417]
[1750209445212,0.34,105250.0,105240.0,0.13780176]
[1750209445657,0.3798,105250.0,105240.0,0.13780176]
[1750209445917,0.3798,105250.0,105240.0,0.14859508]
[1750209446126,0.38930037,105250.0,105240.0,0.14859508]
[1750209446376,0.39880092,105250.0,105240.0,0.13780176]
[1750209447114,0.39880092,105250.0,105240.0,0.09624176]
[1750209447339,0.38930037,105250.0,105240.0,0.09624176]
[1750209447566,0.39880092,105250.0,105240.0,0.09624176]
[1750209447790,0.38930037,105250.0,105240.0,0.09624176]
[1750209448284,0.38930037,105250.0,105240.0,0.11193672]
[1750209448785,0.39880083,105250.0,105240.0,0.11193672]
[1750209449026,0.0710048,105240.0,105230.0,0.04156]
[1750209449239,0.41100525,105240.0,105230.0,0.04156]
[1750209449463,0.41100525,105240.0,105220.0,0.0762522]
[1750209449700,0.07100699,105230.0,105220.0,0.0512897]
[1750209449923,0.07100699,105230.0,105220.0,0.04156]
[1750209450137,0.07100699,105230.0,105210.0,0.22832]
[1750209450363,0.07100699,105230.0,105220.0,0.04156]
[1750209450802,0.06150445,105230.0,105220.0,0.04156]
[1750209450987,0.08050944,105230.0,105220.0,0.04156]
[1750209451232,0.08050944,105230.0,105220.0,0.07817218]
[1750209451455,0.09001216,105230.0,105220.0,0.03661218]
[1750209451676,0.09001216,105230.0,105220.0,0.03961218]
[1750209451932,0.40004486,105240.0,105220.0,0.21210614]
[1750209452175,0.55756477,105240.0,105220.0,0.29326614]
[1750209452839,0.00014187,105240.0,105230.0,0.30530733]
[1750209453065,0.00014187,105240.0,105230.0,0.40373419]
[1750209453306,0.00014187,105240.0,105230.0,0.57083673]
[1750209453506,0.00014187,105240.0,105230.0,0.58033909]
[1750209454034,0.00014187,105240.0,105230.0,0.59487994]
[1750209454248,0.00014187,105240.0,105230.0,0.59587994]
[1750209455598,0.00014187,105240.0,105230.0,0.59687994]
[1750209456270,0.00014187,105240.0,105230.0,0.40573419]
[1750209456458,0.00014187,105240.0,105230.0,0.61435655]
[1750209456708,0.00014187,105240.0,105230.0,0.60485419]
[1750209456925,0.00014187,105240.0,105230.0,0.61435655]
[1750209457572,0.00014187,105240.0,105230.0,0.34668599]
[1750209457790,0.00014187,105240.0,105230.0,0.55575138]
[1750209458432,0.00014187,105240.0,105230.0,0.55575129]
[1750209458677,0.00014187,105240.0,105230.0,0.55575138]
[1750209459075,0.00014187,105240.0,105230.0,0.56525401]
[1750209459312,0.00014187,105240.0,105230.0,0.56521401]
[1750209459530,0.00014187,105240.0,105230.0,0.54620884]
[1750209459805,0.00014187,105240.0,105230.0,0.55571165]
[1750209460007,0.00014187,105240.0,105230.0,0.56521437]
[1750209460218,0.00014187,105240.0,105230.0,0.574717]
[1750209460424,0.00014187,105240.0,105230.0,0.56521437]
[1750209461094,0.04414187,105240.0,105230.0,0.002]
[1750209461318,0.05364323,105240.0,105230.0,0.04356]
[1750209462206,0.04414187,105240.0,105230.0,0.04356]
[1750209464432,0.00014187,105240.0,105230.0,0.04356]
[1750209464649,0.00014187,105240.0,105230.0,0.0530629]
[1750209464855,0.00014187,105240.0,105230.0,0.08296179]
[1750209465104,0.00014187,105240.0,105230.0,0.09246469]
[1750209465327,0.00014187,105240.0,105230.0,0.08296179]
[1750209465779,0.07104649,105240.0,105230.0,0.002]
[1750209466001,0.55906468,105240.0,105230.0,0.04356]
[1750209466859,0.5685664,105240.0,105230.0,0.04356]
[1750209467298,0.55906468,105240.0,105230.0,0.04356]
[1750209467535,0.56856631,105240.0,105230.0,0.04356]
[1750209467971,0.57806812,105240.0,105230.0,0.04356]
[1750209468210,0.49766187,105240.0,105230.0,0.05157722]
[1750209468433,0.54966332,105240.0,105230.0,0.05157722]
[1750209468662,0.55916486,105240.0,105230.0,0.01001722]
[1750209468889,0.55916486,105240.0,105230.0,0.002]
[1750209468890,0.56866649,105240.0,105230.0,0.002]
[1750209469542,0.57816821,105240.0,105230.0,0.002]
[1750209469990,0.58767021,105240.0,105230.0,0.002]
[1750209470205,0.57816821,105240.0,105230.0,0.002]
[1750209470623,0.58767066,105240.0,105230.0,0.002]
[1750209472171,0.57816866,105240.0,105230.0,0.002]
[1750209472886,0.58767075,105240.0,105230.0,0.002]
[1750209473109,0.75870938,105240.0,105230.0,0.002]
[1750209473773,0.56866758,105240.0,105230.0,0.002]
[1750209473987,0.55916549,105240.0,105230.0,0.002]
[1750209474205,0.56866749,105240.0,105230.0,0.002]
[1750209475945,0.34,105230.0,105220.0,0.15442438]
[1750209476805,0.34,105230.0,105220.0,0.11286438]
[1750209477022,0.34,105230.0,105220.0,0.15438438]
[1750209477455,0.34,105230.0,105220.0,0.15938438]
[1750209477901,0.35900481,105230.0,105220.0,0.15938438]
[1750209478122,0.38080481,105230.0,105220.0,0.15938438]
[1750209478330,0.38080481,105230.0,105220.0,0.1227722]
[1750209478562,0.37130227,105230.0,105220.0,0.1227722]
[1750209478783,0.38080472,105230.0,105220.0,0.1227722]
[1750209479678,0.38785441,105230.0,105220.0,0.1227722]
[1750209480117,0.37835196,105230.0,105220.0,0.16408237]
[1750209480828,0.37835187,105230.0,105220.0,0.16408237]
[1750209481738,0.38785423,105230.0,105220.0,0.1227722]
[1750209481963,0.38785414,105230.0,105220.0,0.1227722]
[1750209482184,0.41642314,105230.0,105220.0,0.1227722]
[1750209482618,0.39741869,105230.0,105220.0,0.1227722]
[1750209483597,0.39741869,105230.0,105220.0,0.04652]
[1750209483839,0.41642323,105230.0,105220.0,0.04652]
[1750209484282,0.40692087,105230.0,105220.0,0.04652]
[1750209484502,0.41642323,105230.0,105220.0,0.04652]
[1750209484726,0.58344577,105230.0,105220.0,0.04652]
[1750209485484,0.57394323,105230.0,105220.0,0.04652]
[1750209487499,0.56444087,105230.0,105220.0,0.04652]
[1750209487715,0.56444087,105230.0,105220.0,0.07925448]
[1750209488811,0.56444087,105230.0,105220.0,0.005]
[1750209488812,0.57394323,105230.0,105220.0,0.005]
[1750209489026,0.57394323,105230.0,105220.0,0.04652]
[1750209489472,0.56444087,105230.0,105220.0,0.04652]
[1750209489693,0.57394323,105230.0,105220.0,0.04652]
[1750209489911,0.56444087,105230.0,105220.0,0.04652]
[1750209490129,0.57394323,105230.0,105220.0,0.04652]
[1750209490346,0.56444087,105230.0,105220.0,0.04652]
[1750209490606,0.57394332,105230.0,105220.0,0.04652]
[1750209491521,0.57394323,105230.0,105220.0,0.04652]
[1750209491775,0.58344577,105230.0,105220.0,0.04652]
[1750209491998,0.58344568,105230.0,105220.0,0.04652]
[1750209492424,0.56444087,105230.0,105220.0,0.04652]
[1750209492683,0.56444087,105230.0,105220.0,0.005]
[1750209492900,0.57394332,105230.0,105220.0,0.005]
[1750209493154,0.77350644,105230.0,105220.0,0.005]
[1750209493397,0.77350644,105230.0,105200.0,0.12027583]
[1750209493398,0.37801718,105210.0,105200.0,0.044]
[1750209493625,0.53549718,105210.0,105190.0,0.08552]
[1750209493866,0.00950498,105200.0,105190.0,0.18176176]
[1750209494091,0.53549799,105210.0,105190.0,0.18176176]
[1750209494092,0.56407499,105210.0,105190.0,0.18176176]
[1750209494314,0.54506559,105210.0,105190.0,0.23038109]
[1750209494530,0.54506514,105210.0,105190.0,0.2398876]
[1750209494758,0.54506514,105210.0,105200.0,0.0429]
[1750209494975,0.564074,105210.0,105200.0,0.0449]
[1750209495220,0.54520696,105210.0,105200.0,0.0449]
[1750209495436,0.19570289,105210.0,105200.0,0.06802811]
[1750209495919,0.02871882,105210.0,105200.0,0.06802811]
[1750209496142,0.19570289,105210.0,105200.0,0.06602811]
[1750209496379,0.39530376,105210.0,105190.0,0.19436109]
[1750209496599,0.03802082,105200.0,105190.0,0.09102]
[1750209496825,0.44965338,105210.0,105190.0,0.04652]
[1750209497048,0.0285153,105200.0,105190.0,0.04152]
[1750209497507,0.0285153,105200.0,105190.0,0.06192]
[1750209497737,0.01900996,105200.0,105190.0,0.09872797]
[1750209497955,0.17648996,105200.0,105190.0,0.09872797]
[1750209498449,0.16698489,105200.0,105190.0,0.09972797]
[1750209498733,0.16698489,105200.0,105190.0,0.09872797]
[1750209498957,0.15748,105200.0,105190.0,0.10172797]
[1750209499905,0.16698489,105200.0,105190.0,0.10172797]
[1750209500363,0.16698489,105200.0,105190.0,0.10472797]
[1750209501528,0.17648996,105200.0,105190.0,0.10472797]
[1750209502485,0.16698489,105200.0,105190.0,0.10472797]
[1750209503191,0.17648987,105200.0,105190.0,0.10472797]
[1750209504280,0.01900987,105200.0,105190.0,0.10472797]
[1750209505372,0.00950489,105200.0,105190.0,0.10472797]
[1750209507142,0.5545711,105210.0,105190.0,0.10472797]
[1750209507776,0.00950498,105200.0,105190.0,0.10472797]
[1750209507986,0.5545711,105210.0,105190.0,0.10172797]
[1750209508619,0.00950489,105200.0,105190.0,0.10272797]
[1750209508828,0.00950489,105200.0,105190.0,0.09972797]
[1750209509034,0.5545711,105210.0,105200.0,0.0217]
[1750209509242,0.5545711,105210.0,105200.0,0.0432]
[1750209509443,0.5545711,105210.0,105200.0,0.0318028]
[1750209509663,0.6045711,105210.0,105200.0,0.0101028]
[1750209509869,0.59506631,105210.0,105200.0,0.0101028]
[1750209510288,0.418577,105210.0,105200.0,0.0533028]
[1750209510497,0.39,105210.0,105200.0,0.0533028]
[1750209510983,0.39,105210.0,105200.0,0.0543028]
[1750209511632,0.54748,105210.0,105200.0,0.0543028]
[1750209511849,0.54748,105210.0,105200.0,0.0553028]
[1750209512270,0.39,105210.0,105200.0,0.0553028]
[1750209512481,0.54748,105210.0,105200.0,0.0553028]
[1750209514398,0.39,105210.0,105200.0,0.0553028]
[1750209514604,0.54748,105210.0,105200.0,0.0553028]
[1750209517714,0.55698398,105210.0,105200.0,0.0553028]
[1750209518159,0.55698398,105210.0,105200.0,0.08668]
[1750209518370,0.54748,105210.0,105200.0,0.08668]
[1750209519046,0.55698407,105210.0,105200.0,0.08668]
[1750209519262,0.54748,105210.0,105200.0,0.08668]
[1750209519704,0.56648859,105210.0,105200.0,0.08668]
[1750209519918,0.56648859,105210.0,105200.0,0.0968248]
[1750209520575,0.55698416,105210.0,105200.0,0.0968248]
[1750209521259,0.56648841,105210.0,105200.0,0.0968248]
[1750209522355,0.57599284,105210.0,105200.0,0.0968248]
[1750209522559,0.58549745,105210.0,105200.0,0.0968248]
[1750209522774,0.58549736,105210.0,105200.0,0.0968248]
[1750209522987,0.57599284,105210.0,105200.0,0.0968248]
[1750209523207,0.56648841,105210.0,105200.0,0.0968248]
[1750209523422,0.57599275,105210.0,105200.0,0.0968248]
[1750209525056,0.56648841,105210.0,105200.0,0.0968248]
[1750209525585,0.57599284,105210.0,105200.0,0.0968248]
[1750209525808,0.58549745,105210.0,105200.0,0.0968248]
[1750209526257,0.56648841,105210.0,105200.0,0.0968248]
[1750209526464,0.55698416,105210.0,105200.0,0.0968248]
[1750209526655,0.55698407,105210.0,105200.0,0.0968248]
[1750209528210,0.54748,105210.0,105200.0,0.0968248]
[1750209528639,0.5474,105210.0,105200.0,0.0968248]
[1750209529076,0.39,105210.0,105200.0,0.40219166]
[1750209529504,0.39,105210.0,105200.0,0.42120207]
[1750209536544,0.39,105210.0,105200.0,0.43574292]
[1750209544787,0.39,105210.0,105200.0,0.57401251]
[1750209544984,0.39,105210.0,105200.0,0.58351785]
[1750209545396,0.39,105210.0,105200.0,0.59302292]
[1750209561631,0.39,105210.0,105200.0,0.39426292]
[1750209561911,0.39,105210.0,105200.0,0.59294292]
[1750209563304,0.39,105210.0,105200.0,0.57840207]
[1750209565363,0.39,105210.0,105200.0,0.59294292]
[1750209565792,0.05,105210.0,105200.0,0.59294292]
[1750209567576,0.05,105210.0,105200.0,0.66919512]
[1750209569103,0.05,105210.0,105200.0,0.66719512]
[1750209569309,0.05,105210.0,105200.0,0.67119512]
[1750209570353,0.05,105210.0,105200.0,0.59482292]
[1750209570722,0.05,105210.0,105200.0,0.59882292]
[1750209573028,0.05,105210.0,105200.0,0.81366497]
[1750209580266,0.05,105210.0,105200.0,0.61510497]
[1750209580474,0.05,105210.0,105200.0,0.81362497]
[1750209580688,0.05,105210.0,105200.0,0.40026292]
[1750209580898,0.05,105210.0,105200.0,0.81362497]
[1750209582486,0.05,105210.0,105200.0,0.84218697]
[1750209583809,0.3791,105250.0,105230.0,0.20906485]
[1750209584031,0.37924195,105250.0,105240.0,0.34664728]
[1750209584239,0.594084,105250.0,105240.0,0.35614873]
[1750209584643,0.594084,105250.0,105240.0,0.36565036]
[1750209584847,0.594084,105250.0,105240.0,0.35614891]
[1750209585054,0.594084,105250.0,105240.0,0.44133474]
[1750209585474,0.597084,105250.0,105240.0,0.44133474]
[1750209586418,0.557984,105250.0,105240.0,0.44133474]
[1750209586639,0.559984,105250.0,105240.0,0.44133474]
[1750209587052,0.557984,105250.0,105240.0,0.44133474]
[1750209587524,0.559984,105250.0,105240.0,0.44133474]
[1750209591718,0.00514195,105250.0,105240.0,0.71061764]
[1750209592383,0.00514195,105250.0,105240.0,0.73943004]
[1750209592813,0.00514195,105250.0,105240.0,0.52458799]
[1750209595234,0.219984,105250.0,105240.0,0.61291559]
[1750209595463,0.219984,105250.0,105240.0,0.58887311]
[1750209595679,0.259684,105250.0,105240.0,0.58887311]
[1750209595892,0.219984,105250.0,105240.0,0.58887311]
[1750209596108,0.00314195,105250.0,105240.0,0.58887311]
[1750209596331,0.00314195,105250.0,105240.0,0.64371396]
[1750209596996,0.00014195,105250.0,105240.0,0.64371396]
[1750209597422,0.00214195,105250.0,105240.0,0.64367396]
[1750209598883,0.216984,105250.0,105240.0,0.60337396]
[1750209603104,0.00214195,105250.0,105240.0,0.62387396]
[1750209603318,0.216984,105250.0,105240.0,0.62387396]
[1750209604329,0.216984,105250.0,105240.0,0.40501396]
[1750209604595,0.216984,105250.0,105240.0,0.60329396]
[1750209607209,0.216984,105250.0,105240.0,0.64379396]
[1750209609038,0.00214195,105250.0,105240.0,0.64379396]
[1750209609342,0.216984,105250.0,105240.0,0.45828879]
[1750209609566,0.216984,105250.0,105240.0,0.56975003]
[1750209609777,0.216984,105250.0,105240.0,0.58875393]
[1750209609989,0.216984,105250.0,105240.0,0.59825574]
[1750209610411,0.216984,105250.0,105240.0,0.60775746]
[1750209610620,0.216984,105250.0,105240.0,0.607757]
[1750209610834,0.216984,105250.0,105240.0,0.40947654]
[1750209611048,0.216984,105250.0,105240.0,0.60775654]
[1750209611254,0.00214195,105250.0,105240.0,0.598255]
[1750209611524,0.216984,105250.0,105240.0,0.598255]
[1750209611787,0.216984,105250.0,105240.0,0.37020614]
[1750209612016,0.216984,105250.0,105240.0,0.58875356]
[1750209612920,0.216984,105250.0,105240.0,0.42225193]
[1750209613242,0.216984,105250.0,105240.0,0.59825537]
[1750209613660,0.216984,105250.0,105240.0,0.58875374]
[1750209613875,0.216984,105250.0,105240.0,0.59825537]
[1750209614323,0.216984,105250.0,105240.0,0.59825546]
[1750209614528,0.216984,105250.0,105240.0,0.60775709]
[1750209614745,0.216984,105250.0,105240.0,0.58875374]
[1750209614961,0.216984,105250.0,105240.0,0.60775709]
[1750209615185,0.216984,105250.0,105240.0,0.58875374]
[1750209615412,0.00214195,105250.0,105240.0,0.40947691]
[1750209615637,0.216984,105250.0,105240.0,0.64821691]
[1750209615854,0.00214195,105250.0,105240.0,0.66275776]
[1750209616502,0.216984,105250.0,105240.0,0.66275776]
[1750209617872,0.216984,105250.0,105240.0,0.60771691]
[1750209618328,0.216984,105250.0,105240.0,0.62831691]
[1750209618536,0.216984,105250.0,105240.0,0.64831691]
[1750209620728,0.216984,105250.0,105240.0,0.63881546]
[1750209621031,0.216984,105250.0,105240.0,0.60771691]
[1750209623490,0.216984,105250.0,105240.0,0.62801691]
[1750209625602,0.216984,105250.0,105240.0,0.61851546]
[1750209625827,0.216984,105250.0,105240.0,0.62801636]
[1750209627275,0.216984,105250.0,105240.0,0.61851482]
[1750209627487,0.216984,105250.0,105240.0,0.60901337]
[1750209627701,0.216984,105250.0,105240.0,0.62801636]
[1750209628319,0.216984,105250.0,105240.0,0.61851491]
[1750209628561,0.00214195,105250.0,105240.0,0.57917147]
[1750209628783,0.216984,105250.0,105240.0,0.58867301]
[1750209629205,0.216984,105250.0,105240.0,0.59817446]
[1750209630571,0.216984,105250.0,105240.0,0.61867446]
[1750209630994,0.21695142,105250.0,105240.0,0.61867446]
[1750209632213,0.21695142,105250.0,105240.0,0.43324984]
[1750209632303,0.21695142,105250.0,105240.0,0.60913301]
[1750209632518,0.21695142,105250.0,105240.0,0.61863446]
[1750209632736,0.21695142,105250.0,105240.0,0.60913301]
[1750209632956,0.21695142,105250.0,105240.0,0.61863446]
[1750209633156,0.21695142,105250.0,105240.0,0.60913301]
[1750209633404,0.21695142,105250.0,105240.0,0.58863319]
[1750209633630,0.21695142,105250.0,105240.0,0.57913156]
[1750209633854,0.21695142,105250.0,105240.0,0.58863319]
[1750209634942,0.21695142,105250.0,105240.0,0.60793319]
[1750209635167,0.21695142,105250.0,105240.0,0.61743473]
[1750209635809,0.21695142,105250.0,105240.0,0.64543618]
[1750209636164,0.00214195,105250.0,105240.0,0.64543618]
[1750209636387,0.21695142,105250.0,105240.0,0.64543618]
[1750209637077,0.00214195,105250.0,105240.0,0.64543618]
[1750209637295,0.21695142,105250.0,105240.0,0.64543618]
[1750209639746,0.21695142,105250.0,105240.0,0.63593473]
[1750209639996,0.21695142,105250.0,105240.0,0.64543618]
[1750209645445,0.00214195,105250.0,105240.0,0.64543618]
[1750209645655,0.21695142,105250.0,105240.0,0.64543618]
[1750209646590,0.00214195,105250.0,105240.0,0.64543618]
[1750209646793,0.21695142,105250.0,105240.0,0.64543618]
[1750209651228,0.21695142,105250.0,105240.0,0.44727618]
[1750209651452,0.21695142,105250.0,105240.0,0.64527618]
[1750209652350,0.21695142,105250.0,105240.0,0.44727618]
[1750209652568,0.21695142,105250.0,105240.0,0.64527618]
[1750209655365,0.21455142,105250.0,105240.0,0.64527618]
[1750209656326,0.21455142,105250.0,105240.0,0.62627301]
[1750209656544,0.21455142,105250.0,105240.0,0.42827301]
[1750209656755,0.21455142,105250.0,105240.0,0.62623301]
[1750209659076,0.20888951,105250.0,105240.0,0.62623301]
[1750209659750,0.20888951,105250.0,105240.0,0.42827301]
[1750209659964,0.20888951,105250.0,105240.0,0.62623301]
[1750209660472,1.05012473,105260.0,105250.0,0.00950118]
[1750209660684,1.47974367,105260.0,105250.0,0.10574294]
[1750209660902,1.47974367,105260.0,105250.0,0.17881745]
[1750209661337,1.47974367,105260.0,105250.0,0.18831845]
[1750209661566,1.47974367,105260.0,105250.0,0.3783422]
[1750209661783,1.47974367,105260.0,105250.0,0.4194222]
[1750209662220,1.47974367,105260.0,105250.0,0.40042011]
[1750209662796,1.47974367,105260.0,105250.0,0.21039636]
[1750209662897,1.48174367,105260.0,105250.0,0.21039636]
[1750209664132,1.48274367,105260.0,105250.0,0.21989745]
[1750209664609,1.05312473,105260.0,105250.0,0.69053304]
[1750209665071,1.2679342,105260.0,105250.0,0.47572357]
[1750209666522,0.71312473,105260.0,105250.0,0.49026442]
[1750209666762,0.71312473,105260.0,105250.0,0.70507389]
[1750209667641,0.71012473,105260.0,105250.0,0.49026442]
[1750209667858,0.71012473,105260.0,105250.0,0.70507389]
[1750209668111,0.71012473,105260.0,105250.0,0.70707389]
[1750209670439,0.9249342,105260.0,105250.0,0.45118442]
[1750209670668,0.9249342,105260.0,105250.0,0.64894442]
[1750209671538,0.9249342,105260.0,105250.0,0.45118442]
[1750209671750,0.9249342,105260.0,105250.0,0.64894442]
[1750209671978,0.71012473,105260.0,105250.0,0.45118442]
[1750209672191,0.9249342,105260.0,105250.0,0.64894442]
[1750209672861,0.71012473,105260.0,105250.0,0.64894442]
[1750209674872,0.71012473,105260.0,105250.0,0.86366441]
[1750209675306,0.71012473,105260.0,105250.0,0.64894442]
[1750209675521,0.71012473,105260.0,105250.0,0.86366441]
[1750209676176,0.71012473,105260.0,105250.0,0.93991661]
[1750209676401,0.68874094,105260.0,105250.0,0.98991661]
[1750209678675,0.68874094,105260.0,105250.0,0.91366441]
[1750209679773,0.68874094,105260.0,105250.0,0.71590441]
[1750209679993,0.68874094,105260.0,105250.0,0.91362441]
[1750209680216,0.68874094,105260.0,105250.0,0.71590441]
[1750209680448,0.68874094,105260.0,105250.0,0.91362441]
[1750209680679,0.68874094,105260.0,105250.0,0.66590441]
[1750209680910,0.68874094,105260.0,105250.0,0.64890442]
[1750209681141,0.68874094,105260.0,105250.0,0.46822302]
[1750209681356,0.68874094,105260.0,105250.0,0.64890442]
[1750209683370,0.68874094,105260.0,105250.0,0.64790442]
[1750209683807,0.68874094,105260.0,105250.0,0.65090442]
[1750209684239,0.68874094,105260.0,105250.0,0.64790442]
[1750209684680,0.68874094,105260.0,105250.0,0.64990442]
[1750209684896,0.68874094,105260.0,105250.0,0.86462441]
[1750209688756,0.68874094,105260.0,105250.0,0.94087661]
[1750209689359,0.43408529,105260.0,105250.0,0.92730319]
[1750209691039,0.43408529,105260.0,105250.0,0.85105099]
[1750209691934,0.41212105,105260.0,105250.0,1.19105099]
[1750209692159,0.41212105,105260.0,105250.0,1.74687098]
[1750209692374,0.41212105,105260.0,105250.0,1.53215099]
[1750209692375,0.3829357,105260.0,105250.0,1.53215099]
[1750209692998,0.3829357,105260.0,105250.0,1.74387098]
[1750209693208,0.3829357,105260.0,105250.0,1.24505099]
[1750209693420,0.3829357,105260.0,105250.0,1.25005099]
[1750209693637,0.33009258,105260.0,105250.0,1.46477098]
[1750209693858,0.28044738,105260.0,105250.0,1.46477098]
[1750209694068,0.23436643,105260.0,105250.0,1.46477098]
[1750209694285,0.06815806,105260.0,105250.0,1.46477098]
[1750209694503,0.0156643,105280.0,105270.0,0.71062556]
[1750209694714,0.01571161,105280.0,105270.0,1.6211873]
[1750209695999,0.01571161,105280.0,105270.0,1.6231873]
[1750209696214,0.01571161,105280.0,105270.0,1.68895413]
[1750209696436,0.01571161,105280.0,105270.0,1.6261873]
[1750209698827,0.01571161,105280.0,105270.0,1.6241873]
[1750209699041,0.01571161,105280.0,105270.0,1.6261873]
[1750209699458,0.01571161,105280.0,105270.0,1.6331873]
[1750209701051,0.01571161,105280.0,105270.0,1.84790729]
[1750209701501,0.01571161,105280.0,105270.0,1.4765473]
[1750209701933,0.01571161,105280.0,105270.0,1.6741473]
[1750209702152,0.01571161,105280.0,105270.0,1.88886729]
[1750209702611,0.01571161,105280.0,105270.0,1.6741473]
[1750209703255,0.01571161,105280.0,105270.0,1.7026823]
[1750209703484,0.01571161,105280.0,105270.0,1.91740229]
[1750209704571,0.01571161,105280.0,105270.0,1.99260105]
[1750209705061,0.01571161,105280.0,105270.0,1.99256105]
[1750209705933,0.01571161,105280.0,105270.0,1.77784106]
[1750209707047,0.01571161,105280.0,105270.0,1.99256105]
[1750209709802,0.01571161,105280.0,105270.0,1.77784106]
[1750209710016,0.01571161,105280.0,105270.0,1.99256105]
[1750209710447,0.01571161,105280.0,105270.0,1.77784106]
[1750209711078,0.01571161,105280.0,105270.0,1.58028106]
[1750209711287,0.01571161,105280.0,105270.0,1.77784106]
[1750209714519,0.01571161,105280.0,105270.0,0.92260108]
[1750209714740,0.01571161,105280.0,105270.0,1.6740273]
[1750209715433,0.01571161,105280.0,105270.0,1.6240273]
[1750209716356,0.01571161,105280.0,105270.0,1.6739873]
[1750209716601,0.01571161,105280.0,105270.0,1.9150873]
[1750209716796,0.01571161,105280.0,105270.0,1.7586073]
[1750209717021,0.01571161,105280.0,105270.0,1.9150873]
[1750209717245,0.01571161,105280.0,105270.0,1.8963873]
[1750209717466,0.01571161,105280.0,105270.0,1.9463873]
[1750209718350,0.01571161,105280.0,105270.0,2.02158606]
[1750209718564,0.01571161,105280.0,105270.0,1.98878606]
[1750209718781,0.01571161,105280.0,105270.0,2.03878606]